[Event "November 21 Late 2023"]
[Site "https://www.chess.com"]
[Date "2023.11.21"]
[Round "4"]
[White "ciutadella"]
[Black "Yeletsky, Ivan"]
[Result "0-1"]
[Board "41"]
[TimeControl "180+1"]
[BlackFideId "24180327"]
[WhiteElo "2531"]
[BlackElo "2358"]
[BlackTeam "RUS"]
[WhiteClock "0:00:08"]
[BlackClock "0:00:09"]

1. Nf3 {[%clk 0:03:00]}  b6 {[%clk 0:02:56]} 2. g3 {[%clk 0:03:00]}  c5 {[%clk 0:02:49]} 3. Bg2 {[%clk 0:02:55]}  Bb7 {[%clk 0:02:50]} 4. O-O {[%clk 0:02:56]}  g6 {[%clk 0:02:50]} 5. d3 {[%clk 0:02:52]}  d5 {[%clk 0:02:48]} 6. c4 {[%clk 0:02:43]}  dxc4 {[%clk 0:02:40]} 7. dxc4 {[%clk 0:02:39]}  Nd7 {[%clk 0:02:34]} 8. Qa4 {[%clk 0:02:29]}  Qc8 {[%clk 0:02:26]} 9. Rd1 {[%clk 0:02:25]}  Bg7 {[%clk 0:02:22]} 10. Nc3 {[%clk 0:02:19]}  Bc6 {[%clk 0:02:22]} 11. Qc2 {[%clk 0:02:16]}  Ngf6 {[%clk 0:02:20]} 12. Nd5 {[%clk 0:02:15]}  e6 {[%clk 0:02:17]} 13. Nxf6+ {[%clk 0:02:12]}  Nxf6 {[%clk 0:02:15]} 14. Bg5 {[%clk 0:02:00]}  h6 {[%clk 0:02:07]} 15. Bxf6 {[%clk 0:01:55]}  Bxf6 {[%clk 0:02:08]} 16. Rd2 {[%clk 0:01:46]}  O-O {[%clk 0:02:06]} 17. Rad1 {[%clk 0:01:46]}  Rb8 {[%clk 0:01:49]} 18. Ne1 {[%clk 0:01:44]}  Be8 {[%clk 0:01:47]} 19. b3 {[%clk 0:01:38]}  Kg7 {[%clk 0:01:45]} 20. Nd3 {[%clk 0:01:37]}  Qc7 {[%clk 0:01:29]} 21. Nf4 {[%clk 0:01:36]}  Qe5 {[%clk 0:01:18]} 22. e3 {[%clk 0:01:34]}  a6 {[%clk 0:01:14]} 23. Be4 {[%clk 0:01:26]}  b5 {[%clk 0:01:09]} 24. Bg2 {[%clk 0:01:02]}  bxc4 {[%clk 0:01:06]} 25. Qxc4 {[%clk 0:01:03]}  Bb5 {[%clk 0:01:04]} 26. Qe4 {[%clk 0:01:02]}  Qxe4 {[%clk 0:01:02]} 27. Bxe4 {[%clk 0:01:02]}  c4 {[%clk 0:00:49]} 28. bxc4 {[%clk 0:01:02]}  Bxc4 {[%clk 0:00:50]} 29. Rd7 {[%clk 0:01:01]}  Rbd8 {[%clk 0:00:45]} 30. Nxg6 {[%clk 0:00:54]}  Rxd7 {[%clk 0:00:41]} 31. Rxd7 {[%clk 0:00:55]}  Rd8 {[%clk 0:00:41]} 32. Ra7 {[%clk 0:00:39]}  Rd1+ {[%clk 0:00:19]} 33. Kg2 {[%clk 0:00:39]}  Bc3 {[%clk 0:00:07]} 34. Nf4 {[%clk 0:00:35]}  Be1 {[%clk 0:00:04]} 35. Nh5+ {[%clk 0:00:20]}  Kf8 {[%clk 0:00:04]} 36. Nf4 {[%clk 0:00:11]}  Rd2 {[%clk 0:00:03]} 37. Nh3 {[%clk 0:00:11]}  Rxa2 {[%clk 0:00:02]} 38. g4 {[%clk 0:00:11]}  Bd2 {[%clk 0:00:02]} 39. Kg3 {[%clk 0:00:11]}  a5 {[%clk 0:00:02]} 40. Nf4 {[%clk 0:00:10]}  Bb4 {[%clk 0:00:03]} 41. h4 {[%clk 0:00:09]}  Be1 {[%clk 0:00:03]} 42. Nh3 {[%clk 0:00:08]}  a4 {[%clk 0:00:04]} 43. g5 {[%clk 0:00:06]}  hxg5 {[%clk 0:00:04]} 44. hxg5 {[%clk 0:00:07]}  a3 {[%clk 0:00:03]} 45. g6 {[%clk 0:00:08]}  fxg6 {[%clk 0:00:03]} 46. Ng5 {[%clk 0:00:09]}  Bxf2+ {[%clk 0:00:03]} 47. Kf4 {[%clk 0:00:09]}  e5+ {[%clk 0:00:03]} 48. Kxe5 {[%clk 0:00:10]}  Bxe3 {[%clk 0:00:02]} 49. Rf7+ {[%clk 0:00:09]}  Bxf7 {[%clk 0:00:02]} 50. Nxf7 {[%clk 0:00:09]}  Ke7 {[%clk 0:00:02]} 51. Nd6 {[%clk 0:00:10]}  Bc1 {[%clk 0:00:03]} 52. Nc4 {[%clk 0:00:10]}  Ra1 {[%clk 0:00:04]} 53. Nxa3 {[%clk 0:00:08]}  Bxa3 {[%clk 0:00:04]} 54. Kd4 {[%clk 0:00:09]}  Bb2+ {[%clk 0:00:05]} 55. Kd3 {[%clk 0:00:08]}  Rg1 {[%clk 0:00:05]} 56. Ke3 {[%clk 0:00:09]}  Bf6 {[%clk 0:00:06]} 57. Kf2 {[%clk 0:00:09]}  Ra1 {[%clk 0:00:07]} 58. Kf3 {[%clk 0:00:09]}  Ra3+ {[%clk 0:00:08]} 59. Kf4 {[%clk 0:00:10]}  Kd6 {[%clk 0:00:09]} 60. Bxg6 {[%clk 0:00:11]}  Ra4+ {[%clk 0:00:09]} 61. Be4 {[%clk 0:00:12]}  Ke6 {[%clk 0:00:08]} 62. Ke3 {[%clk 0:00:08]}  Ke5 {[%clk 0:00:09]} 0-1

[Event "November 21 Late 2023"]
[Site "https://www.chess.com"]
[Date "2023.11.21"]
[Round "4"]
[White "D`Arruda, Ricardo D."]
[Black "Stoyanov, Tsvetan"]
[Result "1/2-1/2"]
[Board "42"]
[TimeControl "180+1"]
[WhiteFideId "100692"]
[BlackFideId "2917173"]
[WhiteElo "2529"]
[BlackElo "2390"]
[WhiteTeam "ARG"]
[BlackTeam "BUL"]
[WhiteClock "0:00:06"]
[BlackClock "0:00:07"]

1. d4 {[%clk 0:02:58]}  d5 {[%clk 0:02:59]} 2. Nf3 {[%clk 0:02:57]}  Nf6 {[%clk 0:02:59]} 3. g3 {[%clk 0:02:57]}  Bf5 {[%clk 0:02:58]} 4. Bg2 {[%clk 0:02:57]}  e6 {[%clk 0:02:59]} 5. O-O {[%clk 0:02:57]}  c6 {[%clk 0:02:57]} 6. Nh4 {[%clk 0:02:55]}  Nbd7 {[%clk 0:02:55]} 7. Nxf5 {[%clk 0:02:55]}  exf5 {[%clk 0:02:56]} 8. c4 {[%clk 0:02:54]}  dxc4 {[%clk 0:02:51]} 9. Qc2 {[%clk 0:02:54]}  g6 {[%clk 0:02:51]} 10. Qxc4 {[%clk 0:02:53]}  Bg7 {[%clk 0:02:44]} 11. Nc3 {[%clk 0:02:53]}  Nb6 {[%clk 0:02:38]} 12. Qb3 {[%clk 0:02:51]}  O-O {[%clk 0:02:35]} 13. Bf4 {[%clk 0:02:44]}  Qxd4 {[%clk 0:02:24]} 14. Rfd1 {[%clk 0:02:41]}  Qc4 {[%clk 0:02:23]} 15. Qa3 {[%clk 0:02:33]}  Ne4 {[%clk 0:02:10]} 16. Qe7 {[%clk 0:02:09]}  Bxc3 {[%clk 0:01:47]} 17. bxc3 {[%clk 0:02:01]}  Nd5 {[%clk 0:01:47]} 18. Qxb7 {[%clk 0:01:59]}  Nexc3 {[%clk 0:01:41]} 19. Bxd5 {[%clk 0:01:49]}  cxd5 {[%clk 0:01:34]} 20. Bh6 {[%clk 0:01:45]}  Rfb8 {[%clk 0:01:17]} 21. Qe7 {[%clk 0:01:44]}  Nxe2+ {[%clk 0:01:17]} 22. Kf1 {[%clk 0:01:38]}  Nxg3+ {[%clk 0:01:12]} 23. Kg1 {[%clk 0:01:36]}  Nh5 {[%clk 0:01:04]} 24. Rac1 {[%clk 0:01:29]}  Qg4+ {[%clk 0:01:03]} 25. Kh1 {[%clk 0:01:28]}  Re8 {[%clk 0:00:52]} 26. Qb7 {[%clk 0:01:26]}  Qf3+ {[%clk 0:00:45]} 27. Kg1 {[%clk 0:01:25]}  Rab8 {[%clk 0:00:43]} 28. Qxa7 {[%clk 0:01:22]}  Nf6 {[%clk 0:00:34]} 29. Qd4 {[%clk 0:01:04]}  Re6 {[%clk 0:00:25]} 30. Re1 {[%clk 0:00:55]}  Qg4+ {[%clk 0:00:20]} 31. Qxg4 {[%clk 0:00:55]}  Nxg4 {[%clk 0:00:21]} 32. Bf4 {[%clk 0:00:44]}  Ra8 {[%clk 0:00:20]} 33. f3 {[%clk 0:00:32]}  Nf6 {[%clk 0:00:19]} 34. Be5 {[%clk 0:00:29]}  Rxa2 {[%clk 0:00:13]} 35. Rc8+ {[%clk 0:00:27]}  Kg7 {[%clk 0:00:13]} 36. f4 {[%clk 0:00:25]}  Kh6 {[%clk 0:00:13]} 37. Rc7 {[%clk 0:00:24]}  Ng4 {[%clk 0:00:09]} 38. Rxf7 {[%clk 0:00:23]}  Nxe5 {[%clk 0:00:09]} 39. fxe5 {[%clk 0:00:21]}  Ra4 {[%clk 0:00:08]} 40. Re3 {[%clk 0:00:21]}  Rg4+ {[%clk 0:00:06]} 41. Kf2 {[%clk 0:00:20]}  Rf4+ {[%clk 0:00:06]} 42. Kg2 {[%clk 0:00:20]}  Re4 {[%clk 0:00:06]} 43. Rh3+ {[%clk 0:00:20]}  Kg5 {[%clk 0:00:07]} 44. Rhxh7 {[%clk 0:00:20]}  R6xe5 {[%clk 0:00:07]} 45. Rhg7 {[%clk 0:00:19]}  Re2+ {[%clk 0:00:07]} 46. Kf1 {[%clk 0:00:18]}  Rxh2 {[%clk 0:00:06]} 47. Rd7 {[%clk 0:00:19]}  Re6 {[%clk 0:00:03]} 48. Rxd5 {[%clk 0:00:18]}  Rh4 {[%clk 0:00:03]} 49. Rgd7 {[%clk 0:00:15]}  Rf4+ {[%clk 0:00:04]} 50. Kg2 {[%clk 0:00:14]}  Rg4+ {[%clk 0:00:05]} 51. Kf3 {[%clk 0:00:14]}  Ree4 {[%clk 0:00:05]} 52. R5d6 {[%clk 0:00:14]}  Ref4+ {[%clk 0:00:05]} 53. Ke2 {[%clk 0:00:14]}  Kh5 {[%clk 0:00:06]} 54. Rh7+ {[%clk 0:00:14]}  Kg5 {[%clk 0:00:06]} 55. Rg7 {[%clk 0:00:14]}  Kh4 {[%clk 0:00:06]} 56. Rgxg6 {[%clk 0:00:14]}  Re4+ {[%clk 0:00:06]} 57. Kf3 {[%clk 0:00:14]}  Rgf4+ {[%clk 0:00:07]} 58. Kg2 {[%clk 0:00:14]}  Re2+ {[%clk 0:00:07]} 59. Kg1 {[%clk 0:00:14]}  Rc4 {[%clk 0:00:04]} 60. Rh6+ {[%clk 0:00:11]}  Kg3 {[%clk 0:00:02]} 61. Rdg6+ {[%clk 0:00:11]}  Kf3 {[%clk 0:00:03]} 62. Rh3+ {[%clk 0:00:11]}  Ke4 {[%clk 0:00:03]} 63. Rh4+ {[%clk 0:00:10]}  f4 {[%clk 0:00:04]} 64. Kh1 {[%clk 0:00:09]}  Rc1+ {[%clk 0:00:03]} 65. Rg1 {[%clk 0:00:09]}  Rcc2 {[%clk 0:00:04]} 66. Rh8 {[%clk 0:00:07]}  Kf3 {[%clk 0:00:03]} 67. Rh3+ {[%clk 0:00:07]}  Ke4 {[%clk 0:00:04]} 68. Rh8 {[%clk 0:00:07]}  f3 {[%clk 0:00:04]} 69. Re8+ {[%clk 0:00:07]}  Kf4 {[%clk 0:00:05]} 70. Rf8+ {[%clk 0:00:06]}  Ke3 {[%clk 0:00:06]} 71. Re8+ {[%clk 0:00:07]}  Kf2 {[%clk 0:00:06]} 72. Rf8 {[%clk 0:00:06]}  Rc4 {[%clk 0:00:05]} 73. Rh8 {[%clk 0:00:05]}  Rf4 {[%clk 0:00:05]} 74. Rh2+ {[%clk 0:00:05]}  Ke3 {[%clk 0:00:06]} 75. Rh3 {[%clk 0:00:05]}  Kd2 {[%clk 0:00:05]} 76. Rf1 {[%clk 0:00:05]}  f2 {[%clk 0:00:05]} 77. Kg2 {[%clk 0:00:05]}  Rf5 {[%clk 0:00:04]} 78. Rg3 {[%clk 0:00:05]}  Re1 {[%clk 0:00:04]} 79. Rxf2+ {[%clk 0:00:04]}  Rxf2+ {[%clk 0:00:05]} 80. Kxf2 {[%clk 0:00:05]}  Re2+ {[%clk 0:00:06]} 81. Kf3 {[%clk 0:00:05]}  Re3+ {[%clk 0:00:06]} 82. Kg4 {[%clk 0:00:06]}  Rxg3+ {[%clk 0:00:07]} 83. Kxg3 {[%clk 0:00:06]} 1/2-1/2

[Event "November 21 Late 2023"]
[Site "https://www.chess.com"]
[Date "2023.11.21"]
[Round "4"]
[White "Tologon tegin, Semetei"]
[Black "Ghasi, Ameet K"]
[Result "0-1"]
[Board "44"]
[TimeControl "180+1"]
[WhiteFideId "13800574"]
[BlackFideId "409200"]
[WhiteElo "2258"]
[BlackElo "2558"]
[WhiteTeam "KGZ"]
[BlackTeam "ENG"]
[WhiteClock "0:00:06"]
[BlackClock "0:00:05"]

1. d4 {[%clk 0:02:57]}  g6 {[%clk 0:02:59]} 2. c4 {[%clk 0:02:55]}  Bg7 {[%clk 0:02:52]} 3. Nc3 {[%clk 0:02:54]}  d6 {[%clk 0:02:51]} 4. e4 {[%clk 0:02:51]}  a6 {[%clk 0:02:52]} 5. h3 {[%clk 0:02:49]}  Nc6 {[%clk 0:02:45]} 6. Nf3 {[%clk 0:02:46]}  Nf6 {[%clk 0:02:40]} 7. Be3 {[%clk 0:02:45]}  O-O {[%clk 0:02:35]} 8. Be2 {[%clk 0:02:44]}  e5 {[%clk 0:02:35]} 9. d5 {[%clk 0:02:44]}  Nb8 {[%clk 0:02:29]} 10. g4 {[%clk 0:02:37]}  Nbd7 {[%clk 0:02:25]} 11. Nd2 {[%clk 0:02:33]}  a5 {[%clk 0:02:24]} 12. g5 {[%clk 0:02:29]}  Ne8 {[%clk 0:02:24]} 13. h4 {[%clk 0:02:29]}  Nc5 {[%clk 0:02:16]} 14. h5 {[%clk 0:02:27]}  c6 {[%clk 0:02:16]} 15. Qc2 {[%clk 0:02:21]}  Bd7 {[%clk 0:02:10]} 16. O-O-O {[%clk 0:02:16]}  cxd5 {[%clk 0:02:09]} 17. cxd5 {[%clk 0:02:15]}  Rc8 {[%clk 0:02:09]} 18. Kb1 {[%clk 0:02:01]}  Nc7 {[%clk 0:01:57]} 19. Nc4 {[%clk 0:01:53]}  Nb5 {[%clk 0:01:53]} 20. Nxb5 {[%clk 0:01:41]}  Bxb5 {[%clk 0:01:54]} 21. f3 {[%clk 0:01:29]}  a4 {[%clk 0:01:37]} 22. Rc1 {[%clk 0:01:27]}  Re8 {[%clk 0:01:25]} 23. Qd1 {[%clk 0:01:26]}  Qd7 {[%clk 0:01:08]} 24. Qg1 {[%clk 0:01:23]}  Bxc4 {[%clk 0:01:04]} 25. Bxc4 {[%clk 0:01:19]}  b5 {[%clk 0:01:04]} 26. Be2 {[%clk 0:01:19]}  Bf8 {[%clk 0:00:53]} 27. Rh4 {[%clk 0:01:17]}  b4 {[%clk 0:00:49]} 28. Qh2 {[%clk 0:01:16]}  Rc7 {[%clk 0:00:47]} 29. Rh1 {[%clk 0:01:14]}  Re7 {[%clk 0:00:47]} 30. hxg6 {[%clk 0:00:57]}  fxg6 {[%clk 0:00:47]} 31. Qg1 {[%clk 0:00:37]}  b3 {[%clk 0:00:46]} 32. a3 {[%clk 0:00:36]}  Qc8 {[%clk 0:00:39]} 33. Qf1 {[%clk 0:00:22]}  Rf7 {[%clk 0:00:37]} 34. Qd1 {[%clk 0:00:18]}  Nd7 {[%clk 0:00:35]} 35. Bd3 {[%clk 0:00:17]}  Be7 {[%clk 0:00:31]} 36. Qe2 {[%clk 0:00:16]}  Nc5 {[%clk 0:00:20]} 37. Bb5 {[%clk 0:00:16]}  Qf8 {[%clk 0:00:18]} 38. R4h3 {[%clk 0:00:15]}  Qb8 {[%clk 0:00:10]} 39. Rc1 {[%clk 0:00:14]}  Rf8 {[%clk 0:00:08]} 40. Bxc5 {[%clk 0:00:14]}  dxc5 {[%clk 0:00:07]} 41. Bxa4 {[%clk 0:00:12]}  Bd6 {[%clk 0:00:05]} 42. Bc6 {[%clk 0:00:11]}  Qd8 {[%clk 0:00:05]} 43. Rg1 {[%clk 0:00:10]}  Qb8 {[%clk 0:00:02]} 44. Qd3 {[%clk 0:00:10]}  Qb6 {[%clk 0:00:02]} 45. Ba4 {[%clk 0:00:09]}  c4 {[%clk 0:00:02]} 46. Qd1 {[%clk 0:00:08]}  c3 {[%clk 0:00:02]} 47. Bxb3 {[%clk 0:00:07]}  cxb2 {[%clk 0:00:02]} 48. Ka2 {[%clk 0:00:07]}  Rb8 {[%clk 0:00:02]} 49. Rg2 {[%clk 0:00:06]}  Ra7 {[%clk 0:00:03]} 50. Rxb2 {[%clk 0:00:05]}  Rxa3+ {[%clk 0:00:03]} 51. Kb1 {[%clk 0:00:06]}  Qa6 {[%clk 0:00:03]} 52. Kc2 {[%clk 0:00:03]}  Rc8+ {[%clk 0:00:03]} 53. Kd2 {[%clk 0:00:03]}  Bb4+ {[%clk 0:00:04]} 54. Ke3 {[%clk 0:00:03]}  Rc3+ {[%clk 0:00:04]} 55. Kf2 {[%clk 0:00:03]}  Rcxb3 {[%clk 0:00:05]} 56. Rxb3 {[%clk 0:00:03]}  Ra2+ {[%clk 0:00:05]} 57. Kg3 {[%clk 0:00:03]}  Qc4 {[%clk 0:00:04]} 58. Rxb4 {[%clk 0:00:03]}  Qxb4 {[%clk 0:00:04]} 59. Rh2 {[%clk 0:00:03]}  Ra3 {[%clk 0:00:04]} 60. Rf2 {[%clk 0:00:03]}  Qe7 {[%clk 0:00:03]} 61. Kg2 {[%clk 0:00:04]}  Qxg5+ {[%clk 0:00:03]} 62. Kh1 {[%clk 0:00:04]}  Qh4+ {[%clk 0:00:03]} 63. Rh2 {[%clk 0:00:05]}  Qd8 {[%clk 0:00:04]} 64. d6 {[%clk 0:00:05]}  Ra7 {[%clk 0:00:04]} 65. d7 {[%clk 0:00:05]}  Rxd7 {[%clk 0:00:04]} 66. Qb3+ {[%clk 0:00:06]}  Kg7 {[%clk 0:00:04]} 67. Re2 {[%clk 0:00:07]}  Rd1+ {[%clk 0:00:04]} 68. Kg2 {[%clk 0:00:07]}  Qg5+ {[%clk 0:00:05]} 69. Kf2 {[%clk 0:00:06]}  Qg1# {[%clk 0:00:05]} 0-1

[Event "November 21 Late 2023"]
[Site "https://www.chess.com"]
[Date "2023.11.21"]
[Round "4"]
[White "Arifarsky"]
[Black "Petukhov, Dmitry"]
[Result "0-1"]
[Board "46"]
[TimeControl "180+1"]
[BlackFideId "4142748"]
[WhiteElo "2777"]
[BlackElo "2269"]
[BlackTeam "RUS"]
[WhiteClock "0:00:24"]
[BlackClock "0:00:45"]

1. Nf3 {[%clk 0:02:59]}  Nf6 {[%clk 0:02:59]} 2. b3 {[%clk 0:02:59]}  a5 {[%clk 0:02:59]} 3. Bb2 {[%clk 0:03:00]}  a4 {[%clk 0:02:59]} 4. e3 {[%clk 0:03:00]}  e6 {[%clk 0:02:58]} 5. Be2 {[%clk 0:02:58]}  a3 {[%clk 0:02:58]} 6. Bc1 {[%clk 0:02:57]}  b6 {[%clk 0:02:53]} 7. O-O {[%clk 0:02:56]}  Bb7 {[%clk 0:02:54]} 8. c4 {[%clk 0:02:56]}  d5 {[%clk 0:02:53]} 9. Nc3 {[%clk 0:02:55]}  dxc4 {[%clk 0:02:45]} 10. Bxc4 {[%clk 0:02:55]}  Be7 {[%clk 0:02:45]} 11. d4 {[%clk 0:02:52]}  O-O {[%clk 0:02:45]} 12. Bd2 {[%clk 0:02:52]}  c5 {[%clk 0:02:44]} 13. Rc1 {[%clk 0:02:50]}  Nc6 {[%clk 0:02:44]} 14. dxc5 {[%clk 0:02:47]}  Bxc5 {[%clk 0:02:41]} 15. Qe2 {[%clk 0:02:45]}  Nb4 {[%clk 0:02:25]} 16. Rfd1 {[%clk 0:02:42]}  Qe7 {[%clk 0:02:25]} 17. Be1 {[%clk 0:02:37]}  Rfd8 {[%clk 0:02:20]} 18. Rxd8+ {[%clk 0:02:30]}  Rxd8 {[%clk 0:02:20]} 19. Na4 {[%clk 0:02:30]}  Bxf3 {[%clk 0:02:20]} 20. gxf3 {[%clk 0:02:30]}  Nfd5 {[%clk 0:02:13]} 21. Kh1 {[%clk 0:02:20]}  Bd6 {[%clk 0:01:52]} 22. f4 {[%clk 0:02:00]}  Qb7 {[%clk 0:01:31]} 23. Kg1 {[%clk 0:01:51]}  b5 {[%clk 0:01:20]} 24. Bxb5 {[%clk 0:01:48]}  Nxa2 {[%clk 0:01:18]} 25. Ra1 {[%clk 0:01:35]}  Nab4 {[%clk 0:01:18]} 26. Bc4 {[%clk 0:01:35]}  h6 {[%clk 0:01:05]} 27. Rxa3 {[%clk 0:01:28]}  Bxf4 {[%clk 0:01:06]} 28. Qf3 {[%clk 0:00:59]}  Nc2 {[%clk 0:01:00]} 29. Bxd5 {[%clk 0:00:46]}  exd5 {[%clk 0:01:01]} 30. Ra2 {[%clk 0:00:37]}  Nxe1 {[%clk 0:00:52]} 31. Qxf4 {[%clk 0:00:38]}  d4 {[%clk 0:00:47]} 32. Kf1 {[%clk 0:00:34]}  Nf3 {[%clk 0:00:45]} 33. Nc5 {[%clk 0:00:30]}  Qb5+ {[%clk 0:00:44]} 34. Kg2 {[%clk 0:00:24]}  Ne1+ {[%clk 0:00:45]} 0-1

[Event "November 21 Late 2023"]
[Site "https://www.chess.com"]
[Date "2023.11.21"]
[Round "4"]
[White "Horak, Martin"]
[Black "Jarmula, Lukasz"]
[Result "0-1"]
[Board "48"]
[TimeControl "180+1"]
[WhiteFideId "367095"]
[BlackFideId "1160664"]
[WhiteElo "2091"]
[BlackElo "2372"]
[WhiteTeam "CZE"]
[BlackTeam "POL"]
[WhiteClock "0:00:00"]
[BlackClock "0:00:53"]

1. e4 {[%clk 0:03:00]}  c6 {[%clk 0:02:59]} 2. Nf3 {[%clk 0:03:00]}  d5 {[%clk 0:02:59]} 3. Nc3 {[%clk 0:03:01]}  dxe4 {[%clk 0:02:57]} 4. Nxe4 {[%clk 0:03:02]}  Nf6 {[%clk 0:02:57]} 5. Qe2 {[%clk 0:03:02]}  Nxe4 {[%clk 0:02:57]} 6. Qxe4 {[%clk 0:03:03]}  Nd7 {[%clk 0:02:57]} 7. Bc4 {[%clk 0:03:03]}  Nf6 {[%clk 0:02:57]} 8. Ne5 {[%clk 0:03:04]}  e6 {[%clk 0:02:57]} 9. Qe2 {[%clk 0:03:04]}  b5 {[%clk 0:02:53]} 10. Bd3 {[%clk 0:03:04]}  Bb7 {[%clk 0:02:50]} 11. a4 {[%clk 0:03:01]}  a6 {[%clk 0:02:42]} 12. O-O {[%clk 0:02:46]}  Bd6 {[%clk 0:02:40]} 13. b3 {[%clk 0:02:44]}  O-O {[%clk 0:02:37]} 14. Bb2 {[%clk 0:02:44]}  Nd5 {[%clk 0:02:38]} 15. g3 {[%clk 0:02:39]}  f5 {[%clk 0:02:24]} 16. Nf3 {[%clk 0:02:26]}  Re8 {[%clk 0:02:15]} 17. Nd4 {[%clk 0:02:01]}  Qf6 {[%clk 0:02:04]} 18. Rfe1 {[%clk 0:01:35]}  Qg6 {[%clk 0:02:00]} 19. Nf3 {[%clk 0:00:40]}  Nf4 {[%clk 0:01:55]} 20. Qe3 {[%clk 0:00:31]}  c5 {[%clk 0:01:55]} 21. axb5 {[%clk 0:00:28]}  Qg4 {[%clk 0:01:51]} 22. Ne5 {[%clk 0:00:17]}  Bxe5 {[%clk 0:01:43]} 23. Bxe5 {[%clk 0:00:18]}  Ng2 {[%clk 0:01:42]} 24. Qe2 {[%clk 0:00:16]}  Qh3 {[%clk 0:01:38]} 25. f3 {[%clk 0:00:09]}  Nxe1 {[%clk 0:01:37]} 26. Rxe1 {[%clk 0:00:10]}  Qh5 {[%clk 0:01:33]} 27. Kg2 {[%clk 0:00:09]}  axb5 {[%clk 0:01:30]} 28. Bxb5 {[%clk 0:00:10]}  Red8 {[%clk 0:01:30]} 29. d3 {[%clk 0:00:10]}  Ra2 {[%clk 0:01:25]} 30. Rf1 {[%clk 0:00:07]}  Bd5 {[%clk 0:01:25]} 31. Bc4 {[%clk 0:00:06]}  Bxc4 {[%clk 0:01:22]} 32. bxc4 {[%clk 0:00:06]}  Qe8 {[%clk 0:01:22]} 33. Bc3 {[%clk 0:00:05]}  Qd7 {[%clk 0:01:04]} 34. Rf2 {[%clk 0:00:05]}  Qd6 {[%clk 0:00:59]} 35. Qe3 {[%clk 0:00:05]}  h6 {[%clk 0:00:57]} 36. h4 {[%clk 0:00:05]}  Re8 {[%clk 0:00:55]} 37. Be5 {[%clk 0:00:04]}  Qc6 {[%clk 0:00:54]} 38. Qf4 {[%clk 0:00:00]}  Qa4 {[%clk 0:00:53]} 0-1

[Event "November 21 Late 2023"]
[Site "https://www.chess.com"]
[Date "2023.11.21"]
[Round "4"]
[White "Bilan, Danila"]
[Black "Zakaryan, David"]
[Result "0-1"]
[Board "49"]
[TimeControl "180+1"]
[WhiteFideId "24161918"]
[BlackFideId "24101923"]
[WhiteElo "2146"]
[BlackElo "2323"]
[WhiteTeam "RUS"]
[BlackTeam "RUS"]
[WhiteClock "0:00:41"]
[BlackClock "0:01:46"]

1. d4 {[%clk 0:02:58]}  e6 {[%clk 0:02:56]} 2. Nf3 {[%clk 0:02:58]}  c5 {[%clk 0:02:55]} 3. e3 {[%clk 0:02:56]}  b6 {[%clk 0:02:56]} 4. Bd3 {[%clk 0:02:54]}  Bb7 {[%clk 0:02:56]} 5. O-O {[%clk 0:02:53]}  Nf6 {[%clk 0:02:56]} 6. c3 {[%clk 0:02:50]}  Be7 {[%clk 0:02:55]} 7. Nbd2 {[%clk 0:02:49]}  cxd4 {[%clk 0:02:52]} 8. exd4 {[%clk 0:02:50]}  O-O {[%clk 0:02:52]} 9. Qe2 {[%clk 0:02:47]}  d6 {[%clk 0:02:51]} 10. Re1 {[%clk 0:02:38]}  a6 {[%clk 0:02:51]} 11. a4 {[%clk 0:02:38]}  Nbd7 {[%clk 0:02:50]} 12. Nf1 {[%clk 0:02:31]}  Re8 {[%clk 0:02:49]} 13. Ng3 {[%clk 0:02:29]}  Nf8 {[%clk 0:02:48]} 14. h4 {[%clk 0:02:19]}  Qc7 {[%clk 0:02:33]} 15. h5 {[%clk 0:02:10]}  h6 {[%clk 0:02:33]} 16. Nh2 {[%clk 0:01:54]}  N8h7 {[%clk 0:02:08]} 17. Ng4 {[%clk 0:01:42]}  Bf8 {[%clk 0:02:03]} 18. Bf4 {[%clk 0:01:26]}  Nd5 {[%clk 0:01:52]} 19. Bd2 {[%clk 0:01:14]}  f5 {[%clk 0:01:52]} 20. Ne3 {[%clk 0:01:00]}  Nf4 {[%clk 0:01:51]} 21. Qd1 {[%clk 0:00:51]}  Nxd3 {[%clk 0:01:50]} 22. Rf1 {[%clk 0:00:41]}  f4 {[%clk 0:01:46]} 0-1

[Event "November 21 Late 2023"]
[Site "https://www.chess.com"]
[Date "2023.11.21"]
[Round "4"]
[White "Vadim_Galchenko"]
[Black "Schnaider, Ilan"]
[Result "1-0"]
[Board "51"]
[TimeControl "180+1"]
[BlackFideId "169013"]
[WhiteElo "2475"]
[BlackElo "2373"]
[BlackTeam "ARG"]
[WhiteClock "0:00:11"]
[BlackClock "0:00:08"]

1. e4 {[%clk 0:03:00]}  e5 {[%clk 0:02:59]} 2. Nc3 {[%clk 0:03:01]}  Nc6 {[%clk 0:02:58]} 3. Bc4 {[%clk 0:03:01]}  Nf6 {[%clk 0:02:57]} 4. d3 {[%clk 0:03:02]}  Bc5 {[%clk 0:02:57]} 5. f4 {[%clk 0:03:02]}  d6 {[%clk 0:02:54]} 6. Nf3 {[%clk 0:03:02]}  Bg4 {[%clk 0:02:54]} 7. h3 {[%clk 0:03:02]}  Bxf3 {[%clk 0:02:53]} 8. Qxf3 {[%clk 0:03:03]}  Nd4 {[%clk 0:02:54]} 9. Qg3 {[%clk 0:03:03]}  Nxc2+ {[%clk 0:02:07]} 10. Kd1 {[%clk 0:03:03]}  Nxa1 {[%clk 0:02:07]} 11. Qxg7 {[%clk 0:03:03]}  Rf8 {[%clk 0:02:00]} 12. fxe5 {[%clk 0:03:03]}  Nh5 {[%clk 0:01:50]} 13. Qh6 {[%clk 0:02:26]}  Qh4 {[%clk 0:01:35]} 14. Rf1 {[%clk 0:01:32]}  O-O-O {[%clk 0:00:44]} 15. Bg5 {[%clk 0:01:17]}  Qg3 {[%clk 0:00:44]} 16. Qxh5 {[%clk 0:00:50]}  Qxg2 {[%clk 0:00:43]} 17. Qg4+ {[%clk 0:00:49]}  Qxg4+ {[%clk 0:00:43]} 18. hxg4 {[%clk 0:00:50]}  Rde8 {[%clk 0:00:40]} 19. Kd2 {[%clk 0:00:35]}  Rxe5 {[%clk 0:00:22]} 20. Bf6 {[%clk 0:00:21]}  Ree8 {[%clk 0:00:13]} 21. Rxa1 {[%clk 0:00:20]}  c6 {[%clk 0:00:13]} 22. Bg7 {[%clk 0:00:17]}  Rg8 {[%clk 0:00:13]} 23. Bxf7 {[%clk 0:00:17]}  Rxg7 {[%clk 0:00:14]} 24. Bxe8 {[%clk 0:00:17]}  Rxg4 {[%clk 0:00:15]} 25. Rh1 {[%clk 0:00:16]}  Rg7 {[%clk 0:00:12]} 26. Bh5 {[%clk 0:00:16]}  b5 {[%clk 0:00:12]} 27. Ne2 {[%clk 0:00:16]}  a5 {[%clk 0:00:11]} 28. d4 {[%clk 0:00:16]}  Bb4+ {[%clk 0:00:11]} 29. Ke3 {[%clk 0:00:17]}  Kc7 {[%clk 0:00:09]} 30. a3 {[%clk 0:00:17]}  c5 {[%clk 0:00:03]} 31. axb4 {[%clk 0:00:16]}  cxb4 {[%clk 0:00:04]} 32. Nf4 {[%clk 0:00:16]}  Kb6 {[%clk 0:00:03]} 33. Bf3 {[%clk 0:00:15]}  a4 {[%clk 0:00:03]} 34. Rh6 {[%clk 0:00:14]}  Rd7 {[%clk 0:00:03]} 35. e5 {[%clk 0:00:14]}  Ka5 {[%clk 0:00:02]} 36. Rxd6 {[%clk 0:00:13]}  Rc7 {[%clk 0:00:03]} 37. Nd5 {[%clk 0:00:11]}  Rc2 {[%clk 0:00:03]} 38. Rd8 {[%clk 0:00:11]}  Ka6 {[%clk 0:00:02]} 39. Ra8+ {[%clk 0:00:10]}  Kb7 {[%clk 0:00:03]} 40. Nxb4+ {[%clk 0:00:11]}  Kb6 {[%clk 0:00:03]} 41. Nxc2 {[%clk 0:00:11]}  h5 {[%clk 0:00:04]} 42. Bxh5 {[%clk 0:00:10]}  b4 {[%clk 0:00:04]} 43. Rxa4 {[%clk 0:00:10]}  b3 {[%clk 0:00:04]} 44. Rb4+ {[%clk 0:00:10]}  Kc6 {[%clk 0:00:03]} 45. Bf3+ {[%clk 0:00:10]}  Kd7 {[%clk 0:00:04]} 46. Rxb3 {[%clk 0:00:09]}  Ke6 {[%clk 0:00:04]} 47. Be4 {[%clk 0:00:09]}  Kf7 {[%clk 0:00:04]} 48. Rb6 {[%clk 0:00:09]}  Kg7 {[%clk 0:00:04]} 49. d5 {[%clk 0:00:10]}  Kf7 {[%clk 0:00:05]} 50. Nd4 {[%clk 0:00:10]}  Kg7 {[%clk 0:00:06]} 51. Kf4 {[%clk 0:00:11]}  Kf7 {[%clk 0:00:06]} 52. Rf6+ {[%clk 0:00:11]}  Ke7 {[%clk 0:00:07]} 53. d6+ {[%clk 0:00:12]}  Kd7 {[%clk 0:00:08]} 54. Bc6+ {[%clk 0:00:12]}  Kc8 {[%clk 0:00:08]} 55. Rf8# {[%clk 0:00:11]} 1-0